[Event "*** Titled Tuesday Blitz"]
[Site "Chess.com"]
[Date "2019.03.05"]
[Round "7"]
[White "Gubajdullin"]
[Black "MikaelyanArman"]
[Result "0-1"]
[WhiteElo "2456"]
[BlackElo "2709"]
[TimeControl "180+2"]
[EndTime "14:42:34 PST"]
[Termination "MikaelyanArman won by resignation"]

1. d4 {[%clk 0:03:01.9]} 1... Nf6 {[%clk 0:02:57.3]} 2. Bf4 {[%clk 0:03:01.2]}
2... g6 {[%clk 0:02:58.3]} 3. e3 {[%clk 0:02:59.5]} 3... Bg7 {[%clk 0:02:59.1]}
4. Nf3 {[%clk 0:02:59.1]} 4... O-O {[%clk 0:03:00.4]} 5. Be2 {[%clk 0:03:00]}
5... c5 {[%clk 0:03:01.1]} 6. O-O {[%clk 0:02:58.9]} 6... cxd4 {[%clk
0:03:01.9]} 7. exd4 {[%clk 0:02:59.2]} 7... Qb6 {[%clk 0:03:02.7]} 8. Nc3 {[%clk
0:02:58.6]} 8... d6 {[%clk 0:03:01.9]} 9. a3 {[%clk 0:02:58]} 9... Bf5 {[%clk
0:02:51.8]} 10. d5 {[%clk 0:02:51.5]} 10... Nbd7 {[%clk 0:02:50.9]} 11. Nd4
{[%clk 0:02:50.1]} 11... Rac8 {[%clk 0:02:42.6]} 12. Nxf5 {[%clk 0:02:48.7]}
12... gxf5 {[%clk 0:02:44.5]} 13. Be3 {[%clk 0:02:16.9]} 13... Qxb2 {[%clk
0:02:42.4]} 14. Bd4 {[%clk 0:02:17.6]} 14... Rxc3 {[%clk 0:02:39.6]} 15. Bd3
{[%clk 0:01:58]} 15... Nc5 {[%clk 0:02:26.6]} 16. Bxf5 {[%clk 0:01:53.1]} 16...
Na4 {[%clk 0:01:54.1]} 17. Qd2 {[%clk 0:01:18.6]} 17... Rfc8 {[%clk 0:01:16.5]}
18. Rfb1 {[%clk 0:01:07.8]} 18... Rxc2 {[%clk 0:01:10.9]} 19. Rxb2 {[%clk
0:00:56]} 19... Rxd2 {[%clk 0:01:12.1]} 20. Rxd2 {[%clk 0:00:56.5]} 20... Rc4
{[%clk 0:01:13.4]} 21. Re1 {[%clk 0:00:49.9]} 21... Kf8 {[%clk 0:01:09.8]} 22.
g3 {[%clk 0:00:40.2]} 22... Nc5 {[%clk 0:01:02.5]} 23. Bxf6 {[%clk 0:00:34.2]}
23... Bxf6 {[%clk 0:01:02.5]} 24. Bxh7 {[%clk 0:00:35.2]} 24... b5 {[%clk
0:00:56.7]} 25. Rb1 {[%clk 0:00:28.4]} 25... a6 {[%clk 0:00:55.5]} 26. Rb4
{[%clk 0:00:18.9]} 26... Rc1+ {[%clk 0:00:42.9]} 27. Kg2 {[%clk 0:00:19.2]}
27... Ke8 {[%clk 0:00:44.4]} 28. Bf5 {[%clk 0:00:18.1]} 28... e6 {[%clk
0:00:35.4]} 29. dxe6 {[%clk 0:00:18.1]} 29... fxe6 {[%clk 0:00:36.8]} 30. Bg6+
{[%clk 0:00:12.8]} 30... Ke7 {[%clk 0:00:37.4]} 31. h4 {[%clk 0:00:13.5]} 31...
Bc3 {[%clk 0:00:37.9]} 32. Re2 {[%clk 0:00:12.5]} 32... Bxb4 {[%clk 0:00:32.3]}
33. axb4 {[%clk 0:00:13.3]} 33... Nd7 {[%clk 0:00:32.8]} 34. Ra2 {[%clk
0:00:11.7]} 34... Ne5 {[%clk 0:00:30.2]} 35. Bh7 {[%clk 0:00:11.1]} 35... Rc6
{[%clk 0:00:27.1]} 36. h5 {[%clk 0:00:09.9]} 36... Kf6 {[%clk 0:00:28.3]} 37. f4
{[%clk 0:00:09.5]} 37... Ng4 {[%clk 0:00:25.3]} 38. Kh3 {[%clk 0:00:09.3]} 38...
Nh6 {[%clk 0:00:22]} 39. g4 {[%clk 0:00:10]} 39... Kg7 {[%clk 0:00:22.3]} 40.
Bg6 {[%clk 0:00:11]} 40... Rc4 {[%clk 0:00:20]} 41. g5 {[%clk 0:00:11.7]} 41...
Nf5 {[%clk 0:00:12.7]} 42. Bxf5 {[%clk 0:00:12.5]} 42... exf5 {[%clk 0:00:14.6]}
43. Rxa6 {[%clk 0:00:12.2]} 43... Rxf4 {[%clk 0:00:13.4]} 44. Ra7+ {[%clk
0:00:13]} 44... Kg8 {[%clk 0:00:13.7]} 45. h6 {[%clk 0:00:12.6]} 45... Rg4
{[%clk 0:00:12.4]} 46. Rg7+ {[%clk 0:00:12]} 46... Kh8 {[%clk 0:00:13.7]} 47.
Rg6 {[%clk 0:00:11.1]} 47... Kh7 {[%clk 0:00:13.5]} 48. Rg7+ {[%clk 0:00:11.9]}
48... Kh8 {[%clk 0:00:14.9]} 49. g6 {[%clk 0:00:12.9]} 49... d5 {[%clk 0:00:16]}
50. Rh7+ {[%clk 0:00:13.8]} 50... Kg8 {[%clk 0:00:17.1]} 51. Rg7+ {[%clk
0:00:14.9]} 51... Kh8 {[%clk 0:00:18.6]} 52. Rh7+ {[%clk 0:00:15.1]} 52... Kg8
{[%clk 0:00:20]} 53. Rg7+ {[%clk 0:00:14]} 53... Kh8 {[%clk 0:00:20.8]} 54. Rd7
{[%clk 0:00:12]} 54... Rxg6 {[%clk 0:00:19.1]} 55. Rxd5 {[%clk 0:00:12.9]} 55...
Rxh6+ {[%clk 0:00:14.1]} 56. Kg3 {[%clk 0:00:13.8]} 56... Rg6+ {[%clk
0:00:14.9]} 57. Kf3 {[%clk 0:00:14.6]} 57... Kg7 {[%clk 0:00:12.9]} 58. Rxb5
{[%clk 0:00:11.1]} 58... Rg1 {[%clk 0:00:08.7]} 59. Kf4 {[%clk 0:00:11.3]} 59...
Kf7 {[%clk 0:00:08.5]} 60. Ke5 {[%clk 0:00:10.8]} 60... Ke7 {[%clk 0:00:08.6]}
61. Rb7+ {[%clk 0:00:10.5]} 61... Kd8 {[%clk 0:00:09.9]} 62. Kd6 {[%clk
0:00:10.2]} 62... Rd1+ {[%clk 0:00:10]} 63. Kc6 {[%clk 0:00:11.2]} 63... Rc1+
{[%clk 0:00:09.1]} 64. Kb6 {[%clk 0:00:12.1]} 64... Ke8 {[%clk 0:00:06.7]} 65.
b5 {[%clk 0:00:11.9]} 65... f4 {[%clk 0:00:07.4]} 66. Rh7 {[%clk 0:00:09.2]}
66... f3 {[%clk 0:00:08.7]} 67. Rh3 {[%clk 0:00:09.7]} 67... f2 {[%clk
0:00:09.5]} 68. Rf3 {[%clk 0:00:08.6]} 68... f1=Q {[%clk 0:00:09.5]} 69. Rxf1
{[%clk 0:00:09.1]} 69... Rxf1 {[%clk 0:00:11.4]} 70. Kc7 {[%clk 0:00:09.8]}
70... Rc1+ {[%clk 0:00:11.8]} 71. Kb7 {[%clk 0:00:10.3]} 71... Kd7 {[%clk
0:00:13.1]} 72. b6 {[%clk 0:00:11.4]} 72... Rb1 {[%clk 0:00:14.3]} 73. Ka7
{[%clk 0:00:11.8]} 73... Kc6 {[%clk 0:00:15.4]} 74. b7 {[%clk 0:00:11.6]} 74...
Rxb7+ {[%clk 0:00:16]} 75. Ka8 {[%clk 0:00:12.9]} 75... Rh7 {[%clk 0:00:17.5]}
0-1

[Event "*** Titled Tuesday Blitz"]
[Site "Chess.com"]
[Date "2019.03.05"]
[Round "7"]
[White "Bryakin_Mikhail"]
[Black "1stSecond"]
[Result "0-1"]
[WhiteElo "2646"]
[BlackElo "2753"]
[TimeControl "180+2"]
[EndTime "14:42:47 PST"]
[Termination "1stSecond won on time"]

1. d4 {[%clk 0:02:54.7]} 1... Nf6 {[%clk 0:02:53]} 2. c4 {[%clk 0:02:55.9]} 2...
e6 {[%clk 0:02:52.3]} 3. g3 {[%clk 0:02:56.4]} 3... d5 {[%clk 0:02:52.7]} 4. Bg2
{[%clk 0:02:56.9]} 4... Bb4+ {[%clk 0:02:52.4]} 5. Bd2 {[%clk 0:02:57.6]} 5...
Be7 {[%clk 0:02:53.4]} 6. Nf3 {[%clk 0:02:59.1]} 6... O-O {[%clk 0:02:53.2]} 7.
O-O {[%clk 0:03:00.7]} 7... Nbd7 {[%clk 0:02:53.6]} 8. a4 {[%clk 0:02:55.4]}
8... a5 {[%clk 0:02:43.2]} 9. Na3 {[%clk 0:02:47.9]} 9... Ne4 {[%clk 0:02:40.1]}
10. Be3 {[%clk 0:02:40.6]} 10... c6 {[%clk 0:02:37.3]} 11. Qc2 {[%clk
0:02:40.1]} 11... f5 {[%clk 0:02:14.3]} 12. Ne1 {[%clk 0:02:27.4]} 12... Bb4
{[%clk 0:01:53.7]} 13. Nd3 {[%clk 0:02:27.7]} 13... Qe7 {[%clk 0:01:54.5]} 14.
f3 {[%clk 0:02:20.7]} 14... Nd6 {[%clk 0:01:55.5]} 15. c5 {[%clk 0:02:16.8]}
15... Bxa3 {[%clk 0:01:52.9]} 16. bxa3 {[%clk 0:02:10.7]} 16... Nc4 {[%clk
0:01:54.1]} 17. Bf2 {[%clk 0:02:05.5]} 17... e5 {[%clk 0:01:46.5]} 18. e4 {[%clk
0:01:59.7]} 18... f4 {[%clk 0:00:56.9]} 19. dxe5 {[%clk 0:01:41.8]} 19... Ndxe5
{[%clk 0:00:56.6]} 20. Nxf4 {[%clk 0:01:36.7]} 20... dxe4 {[%clk 0:00:53.7]} 21.
fxe4 {[%clk 0:01:25]} 21... Bg4 {[%clk 0:00:51]} 22. Bd4 {[%clk 0:01:22.2]}
22... Rad8 {[%clk 0:00:51.4]} 23. Qc3 {[%clk 0:00:54.4]} 23... Rxd4 {[%clk
0:00:52.7]} 24. Qxd4 {[%clk 0:00:54.6]} 24... Rd8 {[%clk 0:00:54.3]} 25. Qc3
{[%clk 0:00:47.9]} 25... Qxc5+ {[%clk 0:00:54.7]} 26. Kh1 {[%clk 0:00:48.9]}
26... Qe3 {[%clk 0:00:43.6]} 27. Qxe3 {[%clk 0:00:44.8]} 27... Nxe3 {[%clk
0:00:45.5]} 28. Rf2 {[%clk 0:00:46.7]} 28... g5 {[%clk 0:00:44.6]} 29. Nh3
{[%clk 0:00:42.2]} 29... h6 {[%clk 0:00:38.2]} 30. Ng1 {[%clk 0:00:43.4]} 30...
Nxg2 {[%clk 0:00:34.7]} 31. Kxg2 {[%clk 0:00:43.9]} 31... Rd4 {[%clk 0:00:36.3]}
32. h3 {[%clk 0:00:40.9]} 32... Bc8 {[%clk 0:00:37.4]} 33. Nf3 {[%clk
0:00:41.7]} 33... Nxf3 {[%clk 0:00:37.5]} 34. Kxf3 {[%clk 0:00:42.6]} 34... Bxh3
{[%clk 0:00:31.2]} 35. Rb2 {[%clk 0:00:41.9]} 35... Bc8 {[%clk 0:00:31.5]} 36.
Ke3 {[%clk 0:00:38]} 36... Rxa4 {[%clk 0:00:32.6]} 37. Rd2 {[%clk 0:00:39.3]}
37... Kf7 {[%clk 0:00:32.3]} 38. Rd8 {[%clk 0:00:40.4]} 38... Be6 {[%clk
0:00:33.6]} 39. Rb8 {[%clk 0:00:40.8]} 39... b5 {[%clk 0:00:34.4]} 40. Rh1
{[%clk 0:00:34.4]} 40... Rxa3+ {[%clk 0:00:34.6]} 41. Kd4 {[%clk 0:00:36]} 41...
Kg7 {[%clk 0:00:27.8]} 42. Ke5 {[%clk 0:00:37.1]} 42... Bg4 {[%clk 0:00:25]} 43.
Rb7+ {[%clk 0:00:36.1]} 43... Kg6 {[%clk 0:00:25.6]} 44. Rf1 {[%clk 0:00:37.7]}
44... Rf3 {[%clk 0:00:24.7]} 45. Rc1 {[%clk 0:00:39.2]} 45... Rf6 {[%clk
0:00:24.6]} 46. Kd4 {[%clk 0:00:36.4]} 46... a4 {[%clk 0:00:22.9]} 47. e5 {[%clk
0:00:37.9]} 47... Re6 {[%clk 0:00:24.1]} 48. Rb6 {[%clk 0:00:35.1]} 48... Bf3
{[%clk 0:00:23.8]} 49. Rb8 {[%clk 0:00:32.9]} 49... g4 {[%clk 0:00:23]} 50. Rg8+
{[%clk 0:00:33.4]} 50... Kf7 {[%clk 0:00:23.5]} 51. Rd8 {[%clk 0:00:32.2]} 51...
a3 {[%clk 0:00:23]} 52. Ra1 {[%clk 0:00:27.4]} 52... b4 {[%clk 0:00:22.1]} 53.
Kc4 {[%clk 0:00:28.8]} 53... Rxe5 {[%clk 0:00:21.2]} 54. Kxb4 {[%clk 0:00:30.4]}
54... Re4+ {[%clk 0:00:19.4]} 55. Kxa3 {[%clk 0:00:30.6]} 55... Re3+ {[%clk
0:00:21]} 56. Kb4 {[%clk 0:00:32]} 56... Bd5 {[%clk 0:00:22.5]} 57. Ra7+ {[%clk
0:00:30.8]} 57... Kg6 {[%clk 0:00:21]} 58. Rd6+ {[%clk 0:00:30.8]} 58... Kh5
{[%clk 0:00:21.1]} 59. Rh7 {[%clk 0:00:27]} 59... Rxg3 {[%clk 0:00:22.4]} 60.
Rhxh6+ {[%clk 0:00:28.3]} 60... Kg5 {[%clk 0:00:24]} 61. Rhg6+ {[%clk
0:00:29.1]} 61... Kf4 {[%clk 0:00:25.4]} 62. Rdf6+ {[%clk 0:00:30.5]} 62... Ke3
{[%clk 0:00:26.6]} 63. Kc5 {[%clk 0:00:32]} 63... Rg1 {[%clk 0:00:27.5]} 64. Rf8
{[%clk 0:00:32.8]} 64... g3 {[%clk 0:00:28.3]} 65. Re8+ {[%clk 0:00:34]} 65...
Kf2 {[%clk 0:00:27.6]} 66. Rf8+ {[%clk 0:00:35.4]} 66... Kg2 {[%clk 0:00:26.8]}
67. Kd4 {[%clk 0:00:32.2]} 67... Ra1 {[%clk 0:00:25.8]} 68. Ke3 {[%clk
0:00:27.1]} 68... Ra3+ {[%clk 0:00:23.7]} 69. Kd2 {[%clk 0:00:28.4]} 69... Kg1
{[%clk 0:00:24]} 70. Rff6 {[%clk 0:00:21.3]} 70... g2 {[%clk 0:00:24.6]} 71. Rg5
{[%clk 0:00:22.8]} 71... Bf3 {[%clk 0:00:23.1]} 72. Ke1 {[%clk 0:00:10.6]} 72...
Rd3 {[%clk 0:00:22.7]} 73. Rxf3 {[%clk 0:00:03.5]} 73... Rxf3 {[%clk 0:00:23.4]}
74. Rg6 {[%clk 0:00:04.9]} 74... Kh2 {[%clk 0:00:22.8]} 75. Ke2 {[%clk
0:00:06.4]} 75... Rg3 {[%clk 0:00:19.7]} 76. Rh6+ {[%clk 0:00:07.3]} 76... Rh3
{[%clk 0:00:21.1]} 0-1

[Event "*** Titled Tuesday Blitz"]
[Site "Chess.com"]
[Date "2019.03.05"]
[Round "7"]
[White "INLOVEWITHF"]
[Black "MFguimaraes"]
[Result "1/2-1/2"]
[WhiteElo "2284"]
[BlackElo "2303"]
[TimeControl "180+2"]
[EndTime "14:49:20 PST"]
[Termination "Game drawn by agreement"]

1. Nf3 {[%clk 0:03:01.9]} 1... d5 {[%clk 0:03:00.9]} 2. g3 {[%clk 0:03:02.6]}
2... Nf6 {[%clk 0:03:01.1]} 3. Bg2 {[%clk 0:03:03.4]} 3... c5 {[%clk 0:02:58.2]}
4. O-O {[%clk 0:03:03.3]} 4... Nc6 {[%clk 0:02:58.6]} 5. d4 {[%clk 0:03:04]}
5... cxd4 {[%clk 0:03:00]} 6. Nxd4 {[%clk 0:03:05]} 6... e5 {[%clk 0:03:01.4]}
7. Nxc6 {[%clk 0:03:05.9]} 7... bxc6 {[%clk 0:03:03.3]} 8. c4 {[%clk 0:03:07]}
8... Be6 {[%clk 0:03:03.4]} 9. Bg5 {[%clk 0:03:00.1]} 9... Be7 {[%clk
0:03:03.8]} 10. Nc3 {[%clk 0:02:59.9]} 10... Rc8 {[%clk 0:02:58.8]} 11. cxd5
{[%clk 0:02:58.3]} 11... Nxd5 {[%clk 0:02:53]} 12. Bxe7 {[%clk 0:02:46.1]} 12...
Nxe7 {[%clk 0:02:53.8]} 13. Qa4 {[%clk 0:02:25.2]} 13... Qb6 {[%clk 0:02:51.7]}
14. b4 {[%clk 0:02:15.4]} 14... O-O {[%clk 0:02:50.6]} 15. Ne4 {[%clk
0:02:15.3]} 15... Bd5 {[%clk 0:02:42.5]} 16. Nc5 {[%clk 0:02:13.5]} 16... Bxg2
{[%clk 0:02:42.5]} 17. Kxg2 {[%clk 0:02:15.4]} 17... Nd5 {[%clk 0:02:42.8]} 18.
a3 {[%clk 0:02:13.1]} 18... Rfd8 {[%clk 0:02:42.3]} 19. Rfd1 {[%clk 0:01:59.8]}
19... Nc3 {[%clk 0:02:42]} 20. Rxd8+ {[%clk 0:02:00.1]} 20... Rxd8 {[%clk
0:02:43.4]} 21. Qc2 {[%clk 0:02:01.1]} 21... Nd5 {[%clk 0:02:36]} 22. Rd1 {[%clk
0:01:59.6]} 22... h6 {[%clk 0:02:20.6]} 23. e4 {[%clk 0:01:28.7]} 23... Nf6
{[%clk 0:02:20.3]} 24. Na4 {[%clk 0:01:04.6]} 24... Qc7 {[%clk 0:02:13.4]} 25.
Rxd8+ {[%clk 0:01:03.7]} 25... Qxd8 {[%clk 0:02:15.3]} 26. Qxc6 {[%clk
0:01:04.8]} 26... Qd3 {[%clk 0:02:16.4]} 27. Nc3 {[%clk 0:00:58.5]} 27... h5
{[%clk 0:02:12.1]} 28. h4 {[%clk 0:00:41.2]} 28... Ng4 {[%clk 0:01:46.3]} 29.
Qc8+ {[%clk 0:00:39.2]} 29... Kh7 {[%clk 0:01:47.1]} 30. Qf5+ {[%clk 0:00:39.8]}
30... Kg8 {[%clk 0:01:47.8]} 31. Qc8+ {[%clk 0:00:40.6]} 31... Kh7 {[%clk
0:01:48.5]} 32. Qf5+ {[%clk 0:00:35.6]} 32... Kg8 {[%clk 0:01:49.4]} 33. Nd5
{[%clk 0:00:35.4]} 33... Qe2 {[%clk 0:01:35.8]} 34. Qf3 {[%clk 0:00:26.1]} 34...
Qc2 {[%clk 0:01:20]} 35. Ne3 {[%clk 0:00:22.4]} 35... Qc8 {[%clk 0:01:07.9]} 36.
Nxg4 {[%clk 0:00:21.2]} 36... hxg4 {[%clk 0:01:09.8]} 37. Qe3 {[%clk 0:00:21.3]}
37... Qa6 {[%clk 0:01:09.8]} 38. Qc5 {[%clk 0:00:17.1]} 38... Qxa3 {[%clk
0:01:05.8]} 39. Qc8+ {[%clk 0:00:12]} 39... Kh7 {[%clk 0:01:06.8]} 40. Qf5+
{[%clk 0:00:13.4]} 40... Kg8 {[%clk 0:01:08.2]} 41. Qc8+ {[%clk 0:00:15]} 41...
Kh7 {[%clk 0:01:09.5]} 42. Qxg4 {[%clk 0:00:14.5]} 42... Qxb4 {[%clk 0:01:02.7]}
43. Qf5+ {[%clk 0:00:15.4]} 43... Kg8 {[%clk 0:00:57.4]} 44. Qxe5 {[%clk
0:00:17.3]} 44... a5 {[%clk 0:00:54.1]} 45. Qe8+ {[%clk 0:00:17.9]} 45... Kh7
{[%clk 0:00:55.2]} 46. Qxf7 {[%clk 0:00:13.5]} 46... Qxe4+ {[%clk 0:00:56.2]}
47. Kh2 {[%clk 0:00:10.8]} 47... a4 {[%clk 0:00:56]} 48. f4 {[%clk 0:00:10.1]}
48... a3 {[%clk 0:00:52.1]} 49. f5 {[%clk 0:00:08.7]} 49... Qe2+ {[%clk
0:00:44.7]} 50. Kh3 {[%clk 0:00:06.2]} 50... Qf1+ {[%clk 0:00:45.9]} 51. Kg4
{[%clk 0:00:07.1]} 51... Qd1+ {[%clk 0:00:44]} 52. Kg5 {[%clk 0:00:07.2]} 52...
Qd8+ {[%clk 0:00:43.6]} 53. Kg4 {[%clk 0:00:07.8]} 53... Qd4+ {[%clk 0:00:40.3]}
54. Kg5 {[%clk 0:00:08.4]} 54... Qd2+ {[%clk 0:00:38.7]} 55. Kg4 {[%clk
0:00:09.3]} 55... Qe2+ {[%clk 0:00:38.3]} 56. Kg5 {[%clk 0:00:08.1]} 56... Qe3+
{[%clk 0:00:39.1]} 57. Kg4 {[%clk 0:00:08.9]} 57... Qe2+ {[%clk 0:00:19.8]} 58.
Kg5 {[%clk 0:00:09]} 58... a2 {[%clk 0:00:16.8]} 59. f6 {[%clk 0:00:05.2]} 59...
Qe5+ {[%clk 0:00:14.7]} 60. Kg4 {[%clk 0:00:06.4]} 60... Qd4+ {[%clk 0:00:16.1]}
61. Kh3 {[%clk 0:00:04.2]} 61... Qxf6 {[%clk 0:00:14.9]} 62. Qxa2 {[%clk
0:00:04.5]} 62... Qf5+ {[%clk 0:00:16]} 63. Kh2 {[%clk 0:00:05.3]} 63... g6
{[%clk 0:00:17.4]} 64. Qg2 {[%clk 0:00:05.8]} 64... Qg4 {[%clk 0:00:17.9]} 65.
Qd2 {[%clk 0:00:06.5]} 65... Qf5 {[%clk 0:00:17.2]} 66. Qe2 {[%clk 0:00:06.6]}
66... Qd5 {[%clk 0:00:17.6]} 67. Qg2 {[%clk 0:00:07.5]} 67... Qd4 {[%clk
0:00:18]} 68. Qe2 {[%clk 0:00:08.4]} 68... Qf6 {[%clk 0:00:18]} 69. Qg2 {[%clk
0:00:08.7]} 69... Qd6 {[%clk 0:00:18.5]} 70. Qc2 {[%clk 0:00:08.8]} 70... Kh6
{[%clk 0:00:19.2]} 71. Qc1+ {[%clk 0:00:09]} 71... Kh7 {[%clk 0:00:19.6]} 72.
Qb2 {[%clk 0:00:09.7]} 72... Qd5 {[%clk 0:00:18.7]} 73. Qe2 {[%clk 0:00:09.1]}
73... Qc5 {[%clk 0:00:18.4]} 74. g4 {[%clk 0:00:08.8]} 74... Qd6+ {[%clk
0:00:18.7]} 75. Kh3 {[%clk 0:00:09.9]} 75... Qa3+ {[%clk 0:00:19.8]} 76. Kh2
{[%clk 0:00:10.9]} 76... Qd6+ {[%clk 0:00:21.2]} 77. Kh3 {[%clk 0:00:11.6]}
77... Qa3+ {[%clk 0:00:22]} 78. Kg2 {[%clk 0:00:12.6]} 78... Qd6 {[%clk
0:00:22.4]} 79. Qf3 {[%clk 0:00:13.1]} 79... Qd2+ {[%clk 0:00:22.9]} 80. Kg3
{[%clk 0:00:13.6]} 80... Qe1+ {[%clk 0:00:23.8]} 81. Qf2 {[%clk 0:00:14.7]}
81... Qe5+ {[%clk 0:00:24.3]} 82. Kh3 {[%clk 0:00:15.5]} 82... Qc3+ {[%clk
0:00:24.9]} 83. Qg3 {[%clk 0:00:16.6]} 83... Qc1 {[%clk 0:00:23.1]} 84. Qf3
{[%clk 0:00:16.3]} 84... Qb1 {[%clk 0:00:20.3]} 85. Qf7+ {[%clk 0:00:16.4]}
85... Kh8 {[%clk 0:00:21.7]} 86. Qf8+ {[%clk 0:00:16.9]} 86... Kh7 {[%clk
0:00:22.7]} 87. Qf7+ {[%clk 0:00:18.8]} 87... Kh8 {[%clk 0:00:24.1]} 88. Kg3
{[%clk 0:00:12]} 88... Qd3+ {[%clk 0:00:23.9]} 89. Qf3 {[%clk 0:00:11.8]} 89...
Qd6+ {[%clk 0:00:24.8]} 90. Kh3 {[%clk 0:00:11.8]} 90... Qb4 {[%clk 0:00:22.2]}
91. Qe3 {[%clk 0:00:10.3]} 91... Qb1 {[%clk 0:00:20.5]} 92. Kg3 {[%clk
0:00:07.8]} 92... Qc2 {[%clk 0:00:19.7]} 93. Qf3 {[%clk 0:00:07.2]} 93... Qc7+
{[%clk 0:00:18.9]} 94. Kh3 {[%clk 0:00:08.3]} 94... Qc2 {[%clk 0:00:19.2]} 95.
g5 {[%clk 0:00:07.1]} 95... Qc8+ {[%clk 0:00:19.1]} 96. Kg3 {[%clk 0:00:07.5]}
96... Qc7+ {[%clk 0:00:19.9]} 97. Qf4 {[%clk 0:00:08.5]} 97... Qc3+ {[%clk
0:00:20.8]} 98. Qf3 {[%clk 0:00:09.4]} 98... Qe5+ {[%clk 0:00:20.9]} 99. Kg4
{[%clk 0:00:10.3]} 99... Qe6+ {[%clk 0:00:20.2]} 100. Kg3 {[%clk 0:00:11.4]}
100... Qe5+ {[%clk 0:00:20.6]} 101. Qf4 {[%clk 0:00:12.2]} 101... Qe1+ {[%clk
0:00:21.2]} 102. Kg2 {[%clk 0:00:12.7]} 102... Qe2+ {[%clk 0:00:20.8]} 103. Qf2
{[%clk 0:00:13.8]} 103... Qg4+ {[%clk 0:00:21.4]} 104. Qg3 {[%clk 0:00:14.7]}
104... Qe2+ {[%clk 0:00:22.6]} 105. Kh3 {[%clk 0:00:15.6]} 105... Qf1+ {[%clk
0:00:22.7]} 106. Qg2 {[%clk 0:00:15.1]} 106... Qf5+ {[%clk 0:00:23.4]} 107. Kh2
{[%clk 0:00:16.1]} 107... Qf4+ {[%clk 0:00:24.2]} 108. Qg3 {[%clk 0:00:17.2]}
108... Qd2+ {[%clk 0:00:25.2]} 109. Kg1 {[%clk 0:00:18]} 109... Qd1+ {[%clk
0:00:25.6]} 110. Kg2 {[%clk 0:00:18.2]} 110... Qe2+ {[%clk 0:00:26.4]} 111. Qf2
{[%clk 0:00:18.9]} 111... Qg4+ {[%clk 0:00:27.5]} 112. Kf1 {[%clk 0:00:20.3]}
112... Qd1+ {[%clk 0:00:27.1]} 113. Qe1 {[%clk 0:00:21]} 113... Qf3+ {[%clk
0:00:27.5]} 114. Qf2 {[%clk 0:00:22.1]} 114... Qd1+ {[%clk 0:00:28.7]} 115. Kg2
{[%clk 0:00:23.5]} 115... Qg4+ {[%clk 0:00:29.6]} 116. Kh2 {[%clk 0:00:24.9]}
116... Qe4 {[%clk 0:00:26]} 117. Qf8+ {[%clk 0:00:21.3]} 117... Kh7 {[%clk
0:00:27.3]} 118. Qf7+ {[%clk 0:00:20.6]} 118... Kh8 {[%clk 0:00:28.3]} 119. Qf8+
{[%clk 0:00:14.7]} 119... Kh7 {[%clk 0:00:29.4]} 120. Qf7+ {[%clk 0:00:15.7]}
120... Kh8 {[%clk 0:00:30.6]} 121. Qf6+ {[%clk 0:00:17]} 121... Kh7 {[%clk
0:00:31.3]} 122. Qf2 {[%clk 0:00:17.7]} 122... Qe5+ {[%clk 0:00:31.2]} 123. Qg3
{[%clk 0:00:16.8]} 123... Qe2+ {[%clk 0:00:31.8]} 124. Qg2 {[%clk 0:00:17.6]}
124... Qe5+ {[%clk 0:00:32.8]} 125. Kh3 {[%clk 0:00:17.7]} 125... Qf5+ {[%clk
0:00:33.4]} 126. Qg4 {[%clk 0:00:18.1]} 126... Qf1+ {[%clk 0:00:34.1]} 127. Kh2
{[%clk 0:00:19]} 127... Qf2+ {[%clk 0:00:35.2]} 128. Kh3 {[%clk 0:00:19.3]}
128... Qf1+ {[%clk 0:00:36.1]} 129. Qg2 {[%clk 0:00:20.6]} 129... Qf5+ {[%clk
0:00:36.6]} 130. Kh2 {[%clk 0:00:21.3]} 130... Qf4+ {[%clk 0:00:36.1]} 131. Qg3
{[%clk 0:00:22.3]} 131... Qd2+ {[%clk 0:00:36.1]} 132. Kg1 {[%clk 0:00:22.6]}
132... Qd1+ {[%clk 0:00:36.8]} 133. Kg2 {[%clk 0:00:23.6]} 133... Qe2+ {[%clk
0:00:37.6]} 134. Qf2 {[%clk 0:00:24.6]} 134... Qg4+ {[%clk 0:00:38.7]} 135. Kf1
{[%clk 0:00:25.3]} 135... Qd1+ {[%clk 0:00:39.5]} 136. Qe1 {[%clk 0:00:26]}
136... Qf3+ {[%clk 0:00:40.3]} 137. Qf2 {[%clk 0:00:27]} 137... Qd1+ {[%clk
0:00:41.3]} 138. Kg2 {[%clk 0:00:28.1]} 138... Qg4+ {[%clk 0:00:42.2]} 139. Kh2
{[%clk 0:00:29.2]} 139... Qe4 {[%clk 0:00:41.7]} 140. Kg1 {[%clk 0:00:14.8]}
140... Qg4+ {[%clk 0:00:41.4]} 141. Kf1 {[%clk 0:00:15.7]} 141... Qd1+ {[%clk
0:00:42.3]} 142. Kg2 {[%clk 0:00:16.7]} 142... Qg4+ {[%clk 0:00:43.2]} 143. Kh2
{[%clk 0:00:17.8]} 143... Qe4 {[%clk 0:00:43.8]} 144. Qa7+ {[%clk 0:00:16.1]}
144... Kh8 {[%clk 0:00:43.5]} 145. Qb8+ {[%clk 0:00:17]} 145... Kh7 {[%clk
0:00:44.7]} 146. Qc7+ {[%clk 0:00:18.6]} 146... Kh8 {[%clk 0:00:46.1]} 147. Qd8+
{[%clk 0:00:20.1]} 147... Kh7 {[%clk 0:00:47.6]} 148. Qd7+ {[%clk 0:00:21.6]}
148... Kh8 {[%clk 0:00:48.9]} 149. Qc8+ {[%clk 0:00:22.7]} 149... Kh7 {[%clk
0:00:49.6]} 150. Qc7+ {[%clk 0:00:23.9]} 150... Kh8 {[%clk 0:00:50.8]} 151. Qc3+
{[%clk 0:00:24.7]} 151... Kh7 {[%clk 0:00:51.8]} 152. Kg3 {[%clk 0:00:22.4]}
152... Kg8 {[%clk 0:00:49.3]} 153. Qc8+ {[%clk 0:00:18.9]} 153... Kh7 {[%clk
0:00:50.1]} 154. Qd7+ {[%clk 0:00:20.3]} 154... Kh8 {[%clk 0:00:51]} 155. Qd8+
{[%clk 0:00:21.4]} 155... Kh7 {[%clk 0:00:52]} 156. Qc7+ {[%clk 0:00:22.4]}
156... Kh8 {[%clk 0:00:53.1]} 157. Qc3+ {[%clk 0:00:22.9]} 157... Kh7 {[%clk
0:00:54.2]} 158. Qf6 {[%clk 0:00:17.3]} 158... Qe3+ {[%clk 0:00:54.1]} 159. Qf3
{[%clk 0:00:16.7]} 159... Qe5+ {[%clk 0:00:51.9]} 160. Kg2 {[%clk 0:00:17.8]}
160... Qb2+ {[%clk 0:00:52.3]} 161. Kh3 {[%clk 0:00:17.6]} 161... Qc2 {[%clk
0:00:48.4]} 162. h5 {[%clk 0:00:16.9]} 162... Qc8+ {[%clk 0:00:46.6]} 163. Kh4
{[%clk 0:00:16.8]} 163... Qc4+ {[%clk 0:00:47]} 164. Kg3 {[%clk 0:00:11.3]}
164... Qc7+ {[%clk 0:00:44.1]} 165. Kh3 {[%clk 0:00:10.6]} 165... Qd7+ {[%clk
0:00:44.7]} 166. Kh4 {[%clk 0:00:06.5]} 166... Qd4+ {[%clk 0:00:43.9]} 167. Kh3
{[%clk 0:00:05.7]} 1/2-1/2